bitfinex/quotes_BTCUSD_20220226
["timestamp","ask_amount","ask_price","bid_price","bid_amount"]
[1645913800807,0.84036117,39412.0,39411.0,0.00265386]
[1645913801410,1.14036117,39412.0,39411.0,0.00265386]
[1645913801608,0.73681574,39412.0,39411.0,0.00265386]
[1645913801808,0.53508528,39412.0,39411.0,0.00265386]
[1645913802009,0.36348364,39412.0,39411.0,0.00265386]
[1645913802209,0.73681574,39412.0,39411.0,0.00265386]
[1645913802610,0.36348364,39412.0,39411.0,0.00265386]
[1645913803011,0.36339104,39412.0,39411.0,0.00265386]
[1645913808710,0.53499268,39412.0,39411.0,0.00265386]
[1645913809512,1.71293811,39412.0,39411.0,0.00265386]
[1645913809712,1.83221981,39412.0,39411.0,0.00265386]
[1645913809913,2.22582511,39412.0,39411.0,0.00265386]
[1645913810312,2.27622511,39412.0,39411.0,0.00265386]
[1645913810712,2.27622511,39412.0,39406.0,0.03034217]
[1645913810957,0.25329399,39408.0,39406.0,0.03034217]
[1645913811159,0.93689565,39408.0,39406.0,0.03034217]
[1645913811356,0.21603928,39407.0,39406.0,0.03034217]
[1645913812157,0.38764092,39407.0,39406.0,0.03034217]
[1645913812356,0.21603928,39407.0,39406.0,0.03034217]
[1645913812557,0.38764092,39407.0,39406.0,0.03034217]
[1645913813156,0.38764092,39407.0,39395.0,0.2461]
[1645913813157,0.21603928,39407.0,39397.0,0.190962]
[1645913813357,0.56677755,39406.0,39405.0,0.00038448]
[1645913813557,0.26677755,39406.0,39405.0,0.00038448]
[1645913814359,0.26677755,39406.0,39397.0,0.190976]
[1645913814559,0.21173601,39401.0,39397.0,0.190977]
[1645913814801,0.21173601,39401.0,39396.0,0.1143]
[1645913814802,0.063494,39405.0,39402.0,0.30015064]
[1645913815801,0.04716182,39405.0,39402.0,0.30015064]
[1645913816905,0.04728425,39405.0,39402.0,0.30015064]
[1645913817902,0.04716182,39405.0,39402.0,0.30015064]
[1645913818102,0.04756992,39405.0,39402.0,0.30015064]
[1645913819162,0.04716182,39405.0,39402.0,0.30015064]
[1645913819363,0.04756992,39405.0,39402.0,0.30015064]
[1645913820365,0.04716182,39405.0,39402.0,0.30015064]
[1645913820567,0.04728425,39405.0,39402.0,0.30015064]
[1645913820766,0.3140618,39405.0,39402.0,0.30015064]
[1645913821569,0.04716182,39405.0,39402.0,0.30015064]
[1645913821769,0.04728425,39405.0,39402.0,0.30015064]
[1645913822905,0.04756992,39405.0,39402.0,0.30015064]
[1645913823907,0.04716182,39405.0,39402.0,0.30015064]
[1645913824109,0.04756992,39405.0,39402.0,0.30015064]
[1645913824510,0.04756992,39405.0,39402.0,0.29015064]
[1645913825209,0.04716182,39405.0,39402.0,0.29015064]
[1645913825410,0.34756992,39405.0,39402.0,0.29015064]
[1645913826260,0.51876346,39405.0,39402.0,0.29015064]
[1645913826655,0.51917156,39405.0,39402.0,0.29015064]
[1645913826858,0.51917156,39405.0,39402.0,0.19015064]
[1645913827263,0.46917156,39405.0,39402.0,0.19015064]
[1645913827460,0.46876346,39405.0,39402.0,0.19015064]
[1645913827864,0.46917156,39405.0,39402.0,0.19015064]
[1645913828464,0.53266556,39405.0,39402.0,0.19015064]
[1645913828663,0.53225746,39405.0,39402.0,0.19015064]
[1645913829062,0.53266556,39405.0,39402.0,0.19015064]
[1645913829918,0.53225746,39405.0,39402.0,0.19015064]
[1645913830115,0.53266556,39405.0,39402.0,0.19015064]
[1645913830515,0.23550374,39405.0,39402.0,0.19015064]
[1645913830917,0.0639021,39405.0,39402.0,0.19015064]
[1645913831117,0.23509564,39405.0,39402.0,0.19015064]
[1645913831517,0.23550374,39405.0,39402.0,0.19015064]
[1645913831717,0.0639021,39405.0,39402.0,0.19015064]
[1645913832318,0.063494,39405.0,39402.0,0.19015064]
[1645913832524,0.0639021,39405.0,39402.0,0.19015064]
[1645913833457,0.05284391,39405.0,39402.0,0.19015064]
[1645913833659,0.05243581,39405.0,39402.0,0.19015064]
[1645913833859,0.05255824,39405.0,39402.0,0.19015064]
[1645913834259,0.3,39404.0,39402.0,0.19015064]
[1645913834462,0.55400666,39404.0,39402.0,0.19015064]
[1645913834662,0.3,39403.0,39402.0,0.19015064]
[1645913835361,0.25400666,39404.0,39402.0,0.19015064]
[1645913835961,0.23191953,39403.0,39402.0,0.19015064]
[1645913836161,0.45279684,39403.0,39402.0,0.19015064]
[1645913836361,0.75279684,39403.0,39402.0,0.19015064]
[1645913836660,0.75279684,39403.0,39402.0,0.18515064]
[1645913837068,0.92439848,39403.0,39402.0,0.18515064]
[1645913837711,0.75279684,39403.0,39402.0,0.18515064]
[1645913837908,0.62444661,39403.0,39402.0,0.18515064]
[1645913838106,0.45279684,39403.0,39402.0,0.18515064]
[1645913838306,0.62444661,39403.0,39402.0,0.18515064]
[1645913838707,0.45279684,39403.0,39402.0,0.18515064]
[1645913838906,0.75279684,39403.0,39402.0,0.18515064]
[1645913839408,0.75279684,39403.0,39402.0,0.18470034]
[1645913840211,0.92444513,39403.0,39402.0,0.18470034]
[1645913841065,0.62444513,39403.0,39402.0,0.18470034]
[1645913842872,1.35268313,39403.0,39402.0,0.18470034]
[1645913843067,1.74924513,39403.0,39402.0,0.18470034]
[1645913843269,2.06931304,39403.0,39402.0,0.0544008]
[1645913843470,0.7744,39401.0,39397.0,0.00040907]
[1645913843672,0.063507,39398.0,39397.0,0.00040907]
[1645913843871,0.363507,39398.0,39397.0,0.00040907]
[1645913844069,0.063507,39398.0,39397.0,0.00040907]
[1645913844271,0.363507,39398.0,39397.0,0.00040907]
[1645913844469,0.22359298,39397.0,39395.0,0.004]
[1645913844721,0.22359298,39397.0,39396.0,0.00040907]
[1645913845021,0.52359298,39397.0,39396.0,0.00040907]
[1645913845422,0.70403445,39397.0,39396.0,0.00040907]
[1645913845620,0.70403445,39397.0,39395.0,0.004]
[1645913845820,0.3,39396.0,39395.0,0.00440908]
[1645913846819,0.56669862,39396.0,39395.0,0.004]
[1645913847221,0.3,39396.0,39395.0,0.004]
[1645913847419,0.3,39396.0,39394.0,0.00120891]
[1645913847420,0.62018915,39396.0,39394.0,0.00120891]
[1645913847619,0.3,39395.0,39394.0,0.00120891]
[1645913847822,0.3,39395.0,39391.0,0.013]
[1645913848027,0.33019857,39393.0,39391.0,0.013]
[1645913848222,0.33019857,39393.0,39391.0,0.008]
[1645913848864,0.3,39392.0,39391.0,0.008]
[1645913849768,1.45657373,39392.0,39391.0,0.002775]
[1645913850167,1.89115962,39392.0,39391.0,0.002775]
[1645913850667,2.00231605,39392.0,39391.0,0.002775]
[1645913850864,2.26890938,39392.0,39391.0,0.002775]
[1645913851062,2.00231605,39392.0,39391.0,0.002775]
[1645913851264,1.88670811,39392.0,39391.0,0.002775]
[1645913851465,0.59327635,39391.0,39389.0,0.0021]
[1645913851666,0.728238,39390.0,39389.0,0.0021]
[1645913852214,0.377838,39389.0,39388.0,0.0011]
[1645913852413,0.79175941,39389.0,39388.0,0.0011]
[1645913852814,1.18832141,39389.0,39388.0,0.0011]
[1645913853511,1.18832141,39389.0,39387.0,0.0021]
[1645913853512,0.063525,39388.0,39373.0,0.17509396]
[1645913853712,1.0744,39387.0,39374.0,0.1704604]
[1645913854111,1.0744,39387.0,39373.0,0.01015]
[1645913854310,1.0744,39387.0,39372.0,0.22733396]
[1645913854511,0.18674053,39383.0,39373.0,0.191119]
[1645913854710,0.1855271,39386.0,39373.0,0.191119]
[1645913854912,0.1855271,39386.0,39372.0,0.22333396]
[1645913855112,0.1855271,39386.0,39375.0,0.15859128]
[1645913855312,0.1855271,39386.0,39373.0,0.191132]
[1645913855613,0.7744,39385.0,39377.0,0.0004092]
[1645913855815,1.05457589,39384.0,39377.0,0.0004092]
[1645913856064,0.21664789,39384.0,39377.0,0.0004092]
[1645913856558,0.21664789,39384.0,39379.0,0.00040919]
[1645913856960,0.28017589,39384.0,39379.0,0.00040919]
[1645913857557,0.063528,39384.0,39372.0,0.0381]
[1645913857759,0.063528,39384.0,39374.0,0.002]
[1645913857961,0.063536,39380.0,39374.0,0.002]
[1645913858761,0.377838,39379.0,39374.0,0.002]
[1645913858963,0.31014,39379.0,39374.0,0.0015509]
[1645913859164,0.25418,39378.0,39374.0,0.0015509]
[1645913859363,0.55939284,39377.0,39374.0,0.0015509]
[1645913859813,0.18155484,39377.0,39372.0,0.0381]
[1645913860215,0.18155484,39377.0,39374.0,0.00040893]
[1645913860719,0.74138498,39376.0,39369.0,0.003]
[1645913860921,0.84178498,39376.0,39369.0,0.003]
[1645913861121,0.063561,39374.0,39369.0,0.003]
[1645913861428,1.152238,39371.0,39361.0,0.212]
[1645913861620,0.377838,39363.0,39361.0,0.212]
[1645913861816,0.738398,39363.0,39361.0,0.212]
[1645913862219,0.738398,39363.0,39361.0,0.0041]
[1645913862220,2.46486005,39363.0,39361.0,0.0041]
[1645913862421,0.377838,39361.0,39357.0,0.001]
[1645913862615,1.10885164,39363.0,39357.0,0.001]
[1645913862616,0.050396,39360.0,39357.0,0.001]
[1645913862818,0.0504,39363.0,39357.0,0.001]
[1645913863972,0.0514,39363.0,39357.0,0.001]
[1645913864175,0.1014,39363.0,39357.0,0.001]
[1645913864575,0.0514,39363.0,39357.0,0.001]
[1645913864975,0.0514,39363.0,39358.0,0.00040874]
[1645913865274,0.0504,39363.0,39358.0,0.00040874]
[1645913865877,0.5524,39363.0,39358.0,0.00040874]
[1645913866084,0.5524,39363.0,39357.0,0.001]
[1645913866275,0.5524,39363.0,39359.0,0.00040874]
[1645913867223,0.5504,39363.0,39357.0,0.001]
[1645913867424,0.5504,39363.0,39359.0,0.00040873]
[1645913867425,0.5,39363.0,39359.0,0.00040873]
[1645913868122,0.5,39363.0,39361.0,0.19406272]
[1645913868321,0.01016,39371.0,39361.0,0.19406272]
[1645913868322,0.51016,39371.0,39361.0,0.19406272]
[1645913868924,0.56355,39371.0,39364.0,0.22040672]
[1645913869125,0.5,39371.0,39361.0,0.21943272]
[1645913869723,0.5,39371.0,39361.0,0.18822452]
[1645913869923,0.5,39371.0,39364.0,0.0004087]
[1645913870823,0.5,39371.0,39361.0,0.18822452]
[1645913871066,0.5,39371.0,39366.0,0.00040868]
[1645913871465,0.6718151,39374.0,39366.0,0.00040868]
[1645913871668,0.06354874,39373.0,39366.0,0.00040868]
[1645913871866,0.06354874,39373.0,39367.0,0.21469399]
[1645913872066,0.10965646,39366.0,39362.0,0.0504]
[1645913872266,0.10965646,39366.0,39363.0,0.377906]
[1645913872467,0.10959646,39366.0,39363.0,0.377906]
[1645913872966,0.10959646,39366.0,39365.0,0.22641082]
[1645913873165,0.10959646,39366.0,39365.0,0.60431682]
[1645913874573,0.10959646,39366.0,39365.0,0.377906]
[1645913874819,0.10959646,39366.0,39362.0,0.0504]
[1645913875120,0.10959646,39366.0,39359.0,0.02537]
[1645913875819,0.10959646,39366.0,39360.0,0.18911496]
[1645913876420,0.10959646,39366.0,39357.0,0.001]
[1645913877017,0.10959646,39366.0,39360.0,0.00040844]
[1645913878118,0.10959646,39366.0,39357.0,0.17589276]
[1645913878989,0.10959646,39366.0,39358.0,0.17958358]
[1645913879586,0.10959646,39366.0,39357.0,0.17589276]
[1645913881394,0.58140284,39366.0,39357.0,0.001]
[1645913881692,0.40959646,39366.0,39357.0,0.001]
[1645913881888,0.40959646,39366.0,39360.0,0.00040814]
[1645913881889,0.063562,39363.0,39360.0,0.00040814]
[1645913882092,0.377899,39362.0,39360.0,0.00040814]
[1645913882324,0.113562,39363.0,39360.0,0.00040814]
[1645913882521,0.123722,39363.0,39360.0,0.00040814]
[1645913882722,0.377899,39362.0,39360.0,0.00040814]
[1645913882920,0.21225476,39362.0,39357.0,0.001]
[1645913883122,0.073722,39363.0,39360.0,0.00040814]
[1645913883922,0.063562,39363.0,39360.0,0.00040814]
[1645913884124,0.58497391,39362.0,39357.0,0.001]
[1645913884328,0.3,39361.0,39360.0,0.00040814]
[1645913884626,0.41016,39361.0,39360.0,0.00040814]
[1645913884821,0.91016,39361.0,39360.0,0.00040814]
[1645913885223,0.06357192,39360.0,39357.0,0.001]
[1645913885525,0.437305,39359.0,39357.0,0.001]
[1645913885723,0.977145,39359.0,39357.0,0.001]
[1645913886162,0.84895138,39359.0,39357.0,0.001]
[1645913886563,0.3,39358.0,39357.0,0.001]
[1645913886763,0.84895138,39359.0,39357.0,0.001]
[1645913887767,0.377899,39358.0,39357.0,0.001]
[1645913887967,0.84895138,39359.0,39357.0,0.001]
[1645913888165,0.17180638,39358.0,39357.0,0.001]
[1645913888566,0.377899,39358.0,39357.0,0.001]
[1645913889167,0.54970538,39358.0,39357.0,0.001]
[1645913890017,0.55270538,39358.0,39357.0,0.001]
[1645913891218,0.54970538,39358.0,39357.0,0.001]
[1645913892018,0.55270538,39358.0,39357.0,0.001]
[1645913892224,0.377899,39357.0,39355.0,0.30935148]
[1645913892419,0.877899,39357.0,39355.0,0.30935148]
[1645913892618,0.5,39357.0,39355.0,0.30935148]
[1645913893220,0.20526022,39356.0,39355.0,0.30935148]
[1645913893475,0.377899,39356.0,39355.0,0.30935148]
[1645913893669,0.5,39357.0,39355.0,0.30935148]
[1645913893870,0.377899,39356.0,39355.0,0.30935148]
[1645913894070,0.004,39356.0,39355.0,0.30935148]
[1645913894671,0.381899,39356.0,39355.0,0.29435148]
[1645913894873,0.004,39356.0,39355.0,0.29435148]
[1645913895470,0.004,39356.0,39355.0,0.18922983]
[1645913895872,0.5,39357.0,39355.0,0.18922983]
[1645913896071,0.004,39356.0,39355.0,0.18922983]
[1645913897335,0.5,39357.0,39355.0,0.18922983]
[1645913897922,0.504,39357.0,39355.0,0.18922983]
[1645913898926,2.76554627,39357.0,39355.0,0.18922983]
[1645913899127,0.677899,39356.0,39354.0,0.00040818]
[1645913899330,0.87857679,39355.0,39354.0,0.00040818]
[1645913899527,0.50067779,39355.0,39354.0,0.00040818]
[1645913899734,0.063585,39354.0,39351.0,0.0011]
[1645913899926,0.190755,39354.0,39351.0,0.0011]
[1645913900131,0.29,39353.0,39351.0,0.0011]
[1645913900329,0.79,39353.0,39351.0,0.0011]
[1645913900530,0.85358622,39353.0,39351.0,0.0011]
[1645913901169,0.3,39352.0,39351.0,0.0011]
[1645913901372,0.3,39352.0,39349.0,0.0021]
[1645913901573,0.877899,39351.0,39349.0,0.0021]
[1645913901772,0.063601,39348.0,39337.0,0.0021]
[1645913901977,1.152299,39344.0,39337.0,0.0021]
[1645913902170,0.377899,39342.0,39337.0,0.0021]
[1645913902373,0.56269064,39342.0,39341.0,0.00040677]
[1645913902672,0.56269064,39342.0,39338.0,0.02540677]
[1645913902868,0.3,39341.0,39338.0,0.02540677]
[1645913903068,0.441511,39340.0,39338.0,0.02540677]
[1645913903270,0.3,39339.0,39338.0,0.02540677]
[1645913903472,0.677899,39339.0,39338.0,0.02540677]
[1645913903670,0.3,39339.0,39338.0,0.02540677]
[1645913903870,0.36419517,39340.0,39338.0,0.02540677]
[1645913904070,0.679899,39339.0,39338.0,0.02540677]
[1645913904713,0.85170538,39339.0,39338.0,0.02540677]
[1645913905115,1.67610538,39339.0,39338.0,0.02540677]
[1645913905322,1.68464468,39339.0,39334.0,0.0011]
[1645913905517,1.68464468,39339.0,39332.0,0.0001]
[1645913905518,0.441516,39337.0,39332.0,0.0001]
[1645913905817,0.377899,39335.0,39332.0,0.0001]
[1645913906017,0.505135,39335.0,39332.0,0.0001]
[1645913906218,0.377899,39333.0,39321.0,0.06326]
[1645913906421,1.02531771,39334.0,39321.0,0.0031]
[1645913906422,1.152299,39330.0,39321.0,0.0031]
[1645913906620,1.152299,39329.0,39321.0,0.0031]
[1645913906820,0.7744,39325.0,39321.0,0.0031]
[1645913907022,0.377899,39324.0,39321.0,0.0031]
[1645913907220,0.677899,39323.0,39318.0,0.00162405]
[1645913907418,0.727899,39323.0,39318.0,0.00162405]
[1645913907633,0.905184,39323.0,39318.0,0.00162405]
[1645913907822,2.60653737,39320.0,39318.0,0.00162405]
[1645913908020,0.5643062,39319.0,39318.0,0.00162405]
[1645913908218,1.13611258,39319.0,39318.0,0.00162405]
[1645913908475,2.02267636,39319.0,39316.0,0.00047318]
[1645913908674,0.8244,39317.0,39316.0,0.00047318]
[1645913908871,1.202299,39317.0,39316.0,0.00047318]
[1645913909072,0.5998785,39317.0,39316.0,0.00047318]
[1645913909273,0.8998785,39317.0,39316.0,0.00047318]
[1645913909472,0.727899,39317.0,39316.0,0.00047318]
[1645913910070,0.729899,39317.0,39316.0,0.00047318]
[1645913910272,1.504299,39317.0,39316.0,0.00047318]
[1645913910475,0.729899,39317.0,39316.0,0.00047318]
[1645913910671,0.429899,39317.0,39316.0,0.00047318]
[1645913910876,0.379899,39317.0,39316.0,0.00047318]
[1645913911075,0.002,39317.0,39316.0,0.00047318]
[1645913911273,0.063655,39318.0,39313.0,0.00057318]
[1645913911476,0.00010337,39320.0,39313.0,0.00057318]
[1645913911674,0.00010337,39320.0,39316.0,0.16811588]
[1645913911874,0.063631,39322.0,39316.0,0.16811588]
[1645913912078,0.00234457,39320.0,39316.0,0.16811588]
[1645913912718,0.00234457,39320.0,39315.0,0.00038162]
[1645913912919,0.002,39320.0,39313.0,0.00057318]
[1645913913121,0.002,39320.0,39316.0,0.00038162]
[1645913913319,0.00034458,39320.0,39316.0,0.00038162]
[1645913914021,0.00134458,39320.0,39316.0,0.00038162]
[1645913914220,0.001,39320.0,39313.0,0.20017401]
[1645913914422,0.06364009,39319.0,39313.0,0.19555827]
[1645913914620,0.063637,39318.0,39314.0,0.377899]
[1645913916070,0.063637,39318.0,39313.0,0.19555827]
[1645913916275,0.063637,39318.0,39314.0,0.377899]
[1645913916870,0.063637,39318.0,39314.0,0.37817724]
[1645913917872,0.063637,39318.0,39314.0,0.377899]
[1645913918073,0.063637,39318.0,39314.0,0.37830234]
[1645913918280,0.063637,39318.0,39314.0,0.00040334]
[1645913918281,0.377899,39316.0,39314.0,0.00040334]
[1645913918473,0.07887,39316.0,39314.0,0.00040334]
[1645913918673,0.477899,39315.0,39314.0,0.00040334]
[1645913919073,0.20671984,39313.0,39311.0,0.0011]
[1645913919274,0.377899,39312.0,39311.0,0.0011]
[1645913920114,0.379899,39312.0,39311.0,0.0011]
[1645913920511,0.479899,39312.0,39311.0,0.0011]
[1645913920710,1.45007195,39312.0,39311.0,0.0011]
[1645913920914,1.65004552,39312.0,39311.0,0.0001]
[1645913921112,1.6598908,39312.0,39311.0,0.0001]
[1645913921313,1.6598908,39312.0,39307.0,0.0209341]
[1645913921314,0.377899,39308.0,39307.0,0.0209341]
[1645913921513,0.478549,39308.0,39307.0,0.0209341]
[1645913921712,0.48493859,39308.0,39307.0,0.0209341]
[1645913921911,0.79509859,39308.0,39307.0,0.0209341]
[1645913922115,0.67007317,39308.0,39307.0,0.0209341]
[1645913922312,0.491709,39308.0,39307.0,0.0209341]
[1645913922715,0.791709,39308.0,39307.0,0.0209341]
[1645913922912,0.781549,39308.0,39307.0,0.0209341]
[1645913923117,1.72792358,39308.0,39307.0,0.0209341]
[1645913923320,2.24127317,39308.0,39306.0,0.0377982]
[1645913923566,1.589816,39307.0,39306.0,0.0377982]
[1645913923772,1.73128058,39307.0,39306.0,0.0377982]
[1645913923965,1.73128058,39307.0,39304.0,0.04]
[1645913923966,1.21597071,39306.0,39304.0,0.04]
[1645913924162,1.626277,39305.0,39304.0,0.04]
[1645913924363,1.626277,39305.0,39297.0,0.005]
[1645913924364,0.7744,39303.0,39297.0,0.005]
[1645913924564,1.502699,39302.0,39297.0,0.005]
[1645913924862,1.5632919,39302.0,39297.0,0.005]
[1645913925062,1.73526648,39302.0,39297.0,0.001]
[1645913925262,1.74165607,39302.0,39300.0,0.00187779]
[1645913925464,2.24145607,39302.0,39300.0,0.00187779]
[1645913925661,1.86355707,39302.0,39300.0,0.00187779]
[1645913925860,1.15283907,39302.0,39300.0,0.00187779]
[1645913926061,1.15283907,39302.0,39297.0,0.001]
[1645913926062,1.2744,39300.0,39297.0,0.001]
[1645913926271,0.8248,39299.0,39297.0,0.001]
[1645913926463,0.99677458,39299.0,39297.0,0.001]
[1645913926664,0.27237458,39299.0,39297.0,0.001]
[1645913927226,0.11221686,39299.0,39297.0,0.001]
[1645913927529,0.1004,39299.0,39297.0,0.001]
[1645913927724,0.34182099,39299.0,39297.0,0.001]
[1645913928125,0.34482099,39299.0,39297.0,0.001]
[1645913928723,0.33405608,39299.0,39297.0,0.001]
[1645913929325,0.63105608,39299.0,39297.0,0.001]
[1645913929535,0.33105608,39299.0,39297.0,0.001]
[1645913929727,0.49565829,39299.0,39288.0,0.22227997]
[1645913929925,0.0636784,39295.0,39284.0,0.22233357]
[1645913930126,0.0636784,39295.0,39284.0,0.21989243]
[1645913930425,0.1273584,39295.0,39284.0,0.21989243]
[1645913930624,0.1273584,39295.0,39294.0,6e-05]
[1645913932269,0.1303584,39295.0,39294.0,6e-05]
[1645913932868,0.1303584,39295.0,39290.0,0.2340983]
[1645913933277,0.17197458,39298.0,39291.0,0.377899]
[1645913933473,0.73564358,39299.0,39294.0,0.18184109]
[1645913933676,0.563669,39299.0,39290.0,0.2340983]
[1645913934075,0.563669,39299.0,39296.0,0.22833062]
[1645913934373,0.564669,39299.0,39296.0,0.22833062]
[1645913934828,0.56506674,39299.0,39296.0,0.22833062]
[1645913935226,0.06366984,39300.0,39299.0,0.00861286]
[1645913935425,0.17197458,39301.0,39299.0,0.00861286]
[1645913935627,0.254712,39303.0,39299.0,0.00861286]
[1645913936026,0.063665,39302.0,39299.0,0.00861286]
[1645913936226,0.002,39301.0,39299.0,0.00861286]
[1645913937229,0.063665,39302.0,39297.0,0.3]
[1645913937430,0.063665,39302.0,39296.0,0.22194348]
[1645913938232,0.063665,39302.0,39298.0,0.20377238]
[1645913938463,0.00013164,39301.0,39296.0,0.22194348]
[1645913939468,0.063665,39302.0,39296.0,0.22194348]
[1645913939667,0.00039773,39301.0,39296.0,0.22194348]
[1645913940068,0.005,39300.0,39296.0,0.22194348]
[1645913940277,0.06368,39297.0,39291.0,0.00139783]
[1645913940668,0.06368,39297.0,39291.0,0.001]
[1645913940874,0.06368,39297.0,39291.0,0.00139781]
[1645913941270,0.06368146,39296.0,39291.0,0.00039781]
[1645913941875,0.063687,39293.0,39285.0,0.21328685]
[1645913942075,0.063687,39293.0,39291.0,0.00039781]
[1645913943116,0.12737029,39293.0,39286.0,0.001]
[1645913943318,0.12737029,39293.0,39290.0,0.00039782]
[1645913943919,0.12737029,39293.0,39291.0,0.23445854]
[1645913944121,0.065687,39293.0,39291.0,0.23445854]
[1645913944323,0.002,39293.0,39291.0,0.23445854]
[1645913945321,0.01017,39296.0,39291.0,0.23445854]
[1645913945970,0.01017,39296.0,39291.0,0.23736933]
[1645913946173,0.01117,39296.0,39291.0,0.23736933]
[1645913946373,0.01117,39296.0,39291.0,0.40224959]
[1645913946770,0.01117,39296.0,39291.0,0.40263394]
[1645913946970,0.01117,39296.0,39291.0,0.23775368]
[1645913947177,0.001,39296.0,39291.0,0.23775368]
[1645913947471,0.137511,39297.0,39291.0,0.23775368]
[1645913947871,0.127351,39297.0,39291.0,0.23736933]
[1645913948074,0.128351,39297.0,39291.0,0.23774115]
[1645913949073,0.128351,39297.0,39291.0,0.53736933]
[1645913949274,0.064673,39297.0,39291.0,0.53774115]
[1645913949475,0.063673,39297.0,39291.0,0.53774115]
[1645913950127,0.064673,39297.0,39291.0,0.53774115]
[1645913950328,0.064673,39297.0,39291.0,0.53736933]
[1645913950630,0.064673,39297.0,39291.0,0.23736933]
[1645913950933,0.064673,39297.0,39291.0,0.53736933]
[1645913951327,0.063673,39297.0,39291.0,0.53736933]
[1645913951628,0.063673,39297.0,39291.0,0.5348312]
[1645913951828,0.063673,39297.0,39291.0,0.5338312]
[1645913952028,0.063673,39297.0,39291.0,0.2338312]
[1645913952336,0.063673,39297.0,39291.0,0.00037266]
[1645913952337,0.127351,39297.0,39291.0,0.00037266]
[1645913952728,0.127351,39297.0,39286.0,0.002]
[1645913952929,2.27828505,39296.0,39291.0,0.00037266]
[1645913953330,0.063684,39294.0,39291.0,0.00037266]
[1645913953575,0.063685,39292.0,39291.0,0.00037266]
[1645913953975,0.063685,39292.0,39283.0,0.377899]
[1645913954172,0.066685,39292.0,39290.0,0.00037267]
[1645913955175,0.066685,39292.0,39283.0,0.377899]
[1645913955376,0.21209822,39291.0,39289.0,0.00037233]
[1645913955576,0.128115,39292.0,39289.0,0.00037233]
[1645913956175,0.131115,39292.0,39289.0,0.00037233]
[1645913956375,0.131115,39292.0,39283.0,0.377899]
[1645913956576,0.131115,39292.0,39282.0,0.001]
[1645913956776,0.131115,39292.0,39283.0,0.377899]
[1645913956977,0.131115,39292.0,39282.0,0.001]
[1645913957221,0.131115,39292.0,39283.0,0.377899]
[1645913957424,0.063685,39292.0,39283.0,0.377899]
[1645913957626,0.063685,39292.0,39282.0,0.001]
[1645913957627,0.3,39291.0,39282.0,0.001]
[1645913957823,0.063699,39288.0,39282.0,0.001]
[1645913958021,0.01017,39287.0,39282.0,0.001]
[1645913958418,0.06017,39287.0,39282.0,0.001]
[1645913958617,0.06017,39287.0,39276.0,0.18977]
[1645913958821,0.06369287,39286.0,39283.0,0.00039713]
[1645913959020,0.36369287,39286.0,39283.0,0.00039713]
[1645913959218,0.063697,39284.0,39283.0,0.00039713]
[1645913959423,0.156387,39284.0,39283.0,0.00039713]
[1645913959820,0.156387,39284.0,39276.0,0.01017]
[1645913960020,0.06369962,39282.0,39276.0,0.01017]
[1645913960224,0.063701,39280.0,39276.0,0.01175877]
[1645913960422,0.3,39279.0,39276.0,0.00158877]
[1645913960620,0.102061,39280.0,39276.0,0.00158877]
[1645913960820,0.3,39279.0,39271.0,0.05978877]
[1645913961092,0.102061,39280.0,39271.0,0.0111]
[1645913961485,0.3,39279.0,39271.0,0.0111]
[1645913962093,0.3,39279.0,39263.0,0.58016358]
[1645913962094,0.15966078,39263.0,39259.0,0.39777757]
[1645913962293,0.15966078,39263.0,39260.0,0.75412]
[1645913962294,0.09496,39263.0,39260.0,0.75412]
[1645913962490,0.39496,39263.0,39260.0,0.73912]
[1645913962691,0.377899,39261.0,39260.0,0.73912]
[1645913962892,0.683069,39261.0,39260.0,0.73912]
[1645913963089,0.733069,39261.0,39259.0,0.003]
[1645913963294,0.733069,39261.0,39254.0,0.0011]
[1645913963295,1.03932402,39260.0,39254.0,0.0011]
[1645913963492,0.20836842,39259.0,39251.0,0.0012]
[1645913963693,0.20836842,39259.0,39243.0,0.2134998]
[1645913963694,0.05,39257.0,39243.0,0.2046998]
[1645913963888,0.488979,39256.0,39252.0,0.00505713]
[1645913964090,0.3,39255.0,39252.0,0.00505713]
[1645913964292,0.66281357,39254.0,39252.0,5.713e-05]
[1645913964492,0.114151,39253.0,39252.0,5.713e-05]
[1645913964734,0.169331,39253.0,39243.0,0.0032]
[1645913965126,0.378399,39252.0,39241.0,0.0102]
[1645913965328,0.30501158,39254.0,39253.0,0.08671629]
[1645913965529,0.69366558,39254.0,39253.0,0.08671629]
[1645913965724,0.70289367,39254.0,39253.0,0.08671629]
[1645913965929,0.70289367,39254.0,39241.0,0.0102]
[1645913965930,0.063762,39246.0,39241.0,0.0102]
[1645913966126,0.469335,39245.0,39241.0,0.0102]
[1645913966336,0.469335,39245.0,39231.0,0.05]
[1645913966337,0.7744,39239.0,39231.0,0.0011]
[1645913966529,0.63,39237.0,39231.0,0.0011]
[1645913966727,0.4998,39232.0,39231.0,0.0011]
[1645913966928,0.159155,39231.0,39222.0,0.18662993]
[1645913967126,0.0504,39230.0,39222.0,0.18662993]
[1645913967333,0.378474,39229.0,39222.0,0.18162993]
[1645913967527,0.0504,39228.0,39222.0,0.18162993]
[1645913968129,0.0504,39228.0,39219.0,0.001]
[1645913968329,0.673474,39227.0,39219.0,0.001]
[1645913968578,0.7744,39225.0,39223.0,0.00039762]
[1645913968773,1.283955,39224.0,39223.0,0.00039762]
[1645913968973,3.77033644,39224.0,39223.0,0.00039762]
[1645913969172,3.00232603,39224.0,39223.0,0.00039762]
[1645913969375,0.127612,39222.0,39216.0,1.8290708]
[1645913969574,0.734031,39221.0,39216.0,1.8290708]
[1645913969774,0.718761,39221.0,39216.0,1.8290708]
[1645913969975,0.063811,39220.0,39216.0,1.8290708]
[1645913970172,0.219735,39219.0,39216.0,1.8290708]
[1645913970373,0.063805,39218.0,39216.0,1.8240708]
[1645913970577,0.408574,39217.0,39216.0,1.8190708]
[1645913971879,0.408574,39217.0,39216.0,1.8140708]
[1645913972079,0.408574,39217.0,39216.0,1.0372708]
[1645913972080,0.710574,39217.0,39216.0,1.0372708]
[1645913972351,0.760574,39217.0,39216.0,1.0372708]
[1645913972550,0.57895926,39217.0,39216.0,1.0372708]